bitfinex-derivatives/quotes_BTCF0:USTF0_20240905
["timestamp","ask_amount","ask_price","bid_price","bid_amount"]
[1725544497662,0.087834,56928.0,56927.0,0.00226358]
[1725544497852,0.090834,56928.0,56927.0,0.00226358]
[1725544499357,0.003,56928.0,56927.0,0.00226358]
[1725544499554,0.090834,56928.0,56927.0,0.00226358]
[1725544500152,0.178668,56928.0,56927.0,0.00226358]
[1725544500664,0.090834,56928.0,56927.0,0.00226358]
[1725544500849,0.091834,56928.0,56927.0,0.00226358]
[1725544501460,1.755302,56928.0,56927.0,5.8e-07]
[1725544502058,1.667468,56928.0,56927.0,5.8e-07]
[1725544502364,1.755302,56928.0,56927.0,5.8e-07]
[1725544503157,0.263526,56923.0,56922.0,1.6e-07]
[1725544503354,0.99598209,56923.0,56922.0,1.6e-07]
[1725544503555,2.053366,56923.0,56922.0,1.6e-07]
[1725544503754,2.123366,56923.0,56922.0,1.6e-07]
[1725544503962,2.14039303,56923.0,56922.0,1.6e-07]
[1725544504158,2.133366,56923.0,56922.0,1.6e-07]
[1725544504564,2.053366,56923.0,56922.0,1.6e-07]
[1725544504763,2.14919452,56923.0,56922.0,1.6e-07]
[1725544504952,2.18209782,56923.0,56922.0,1.6e-07]
[1725544505156,1.07425582,56923.0,56922.0,1.6e-07]
[1725544505566,0.54721582,56923.0,56922.0,1.6e-07]
[1725544505964,1.07425582,56923.0,56922.0,1.6e-07]
[1725544506468,0.705724,56923.0,56922.0,1.6e-07]
[1725544506656,0.008,56923.0,56922.0,0.08884316]
[1725544506852,0.008,56923.0,56922.0,0.00100016]
[1725544507262,0.095842,56923.0,56922.0,0.00100016]
[1725544507461,0.094842,56923.0,56922.0,0.001]
[1725544507668,0.096842,56923.0,56922.0,0.002]
[1725544508058,0.094842,56923.0,56922.0,0.001]
[1725544508272,0.097842,56923.0,56922.0,0.002]
[1725544509471,0.092842,56923.0,56922.0,0.001]
[1725544509661,0.092842,56923.0,56922.0,0.3628]
[1725544509662,0.097842,56923.0,56922.0,0.3628]
[1725544512160,0.097842,56923.0,56922.0,0.6628]
[1725544512366,0.097842,56923.0,56922.0,2.238483]
[1725544512367,0.005,56923.0,56922.0,2.238483]
[1725544512768,0.005,56923.0,56922.0,2.394683]
[1725544513280,0.00026358,56928.0,56927.0,0.087836]
[1725544513475,0.20522816,56937.0,56936.0,0.087822]
[1725544513668,0.20522816,56937.0,56936.0,1.279542]
[1725544513866,0.20522816,56937.0,56936.0,1.879542]
[1725544514064,0.3608,56954.0,56936.0,2.09172]
[1725544514378,0.3608,56959.0,56953.0,0.304]
[1725544514571,0.087794,56955.0,56953.0,0.304]
[1725544514875,0.3608,56959.0,56949.0,0.3]
[1725544515065,0.3608,56959.0,56958.0,0.004]
[1725544515271,0.087786,56959.0,56958.0,0.001]
[1725544515671,0.087794,56954.0,56953.0,0.30026358]
[1725544517189,0.087794,56954.0,56953.0,0.00226358]
[1725544518574,1.302348,56954.0,56953.0,5.8e-07]
[1725544518980,1.618548,56954.0,56953.0,5.8e-07]
[1725544519178,1.698548,56954.0,56953.0,5.8e-07]
[1725544519380,1.786342,56954.0,56953.0,5.8e-07]
[1725544519572,1.87344894,56954.0,56953.0,5.8e-07]
[1725544519771,0.263406,56949.0,56948.0,1.6e-07]
[1725544520075,0.97268185,56949.0,56948.0,1.6e-07]
[1725544520374,2.09948185,56949.0,56948.0,1.6e-07]
[1725544520578,2.20477936,56949.0,56948.0,1.6e-07]
[1725544520774,0.087842,56923.0,56922.0,0.3608]
[1725544521078,0.3,56931.0,56930.0,1.369833]
[1725544521381,1.73481738,56931.0,56930.0,1.270726]
[1725544521686,1.73581738,56931.0,56930.0,1.270726]
[1725544521882,1.63110112,56931.0,56930.0,1.270726]
[1725544522583,1.03110112,56931.0,56930.0,1.270726]
[1725544522785,1.71893112,56931.0,56930.0,0.979926]
[1725544522986,0.175684,56923.0,56922.0,5.8e-07]
[1725544523173,0.90089933,56923.0,56922.0,5.8e-07]
[1725544523484,2.02693933,56923.0,56922.0,5.8e-07]
[1725544523682,2.02693933,56923.0,56909.0,0.3608]
[1725544523683,0.087862,56910.0,56909.0,0.3608]
[1725544523976,0.088862,56910.0,56909.0,0.3608]
[1725544524285,0.17616043,56910.0,56909.0,0.3608]
[1725544524583,0.087862,56910.0,56909.0,0.3608]
[1725544525186,0.088862,56910.0,56909.0,0.3698]
[1725544526390,0.088862,56910.0,56909.0,0.3798]
[1725544526686,0.087862,56910.0,56909.0,0.3708]
[1725544526876,0.087862,56910.0,56904.0,0.00026358]
[1725544526877,0.54996043,56910.0,56904.0,0.00026358]
[1725544527074,0.47774,56905.0,56904.0,0.00026358]
[1725544527278,0.47674,56905.0,56904.0,0.00026358]
[1725544527478,0.08987,56905.0,56904.0,0.00026358]
[1725544528084,0.47774,56905.0,56904.0,0.00026358]
[1725544528475,0.48474,56905.0,56904.0,0.00026358]
[1725544528880,0.48474,56905.0,56904.0,5.8e-07]
[1725544529288,2.06061,56905.0,56904.0,5.8e-07]
[1725544529587,1.97274,56905.0,56904.0,5.8e-07]
[1725544529894,2.06661,56905.0,56904.0,5.8e-07]
[1725544530185,1.16661,56905.0,56904.0,5.8e-07]
[1725544530386,1.67874,56905.0,56904.0,5.8e-07]
[1725544530585,1.07874,56905.0,56904.0,5.8e-07]
[1725544530890,1.76661,56905.0,56904.0,5.8e-07]
[1725544531285,1.84661,56905.0,56904.0,5.8e-07]
[1725544531790,1.84661,56905.0,56899.0,0.00026358]
[1725544531791,0.263631,56900.0,56899.0,1.6e-07]
[1725544531979,0.624431,56900.0,56899.0,1.6e-07]
[1725544532179,1.751671,56900.0,56899.0,1.6e-07]
[1725544532385,1.963794,56900.0,56899.0,1.6e-07]
[1725544532783,1.963794,56900.0,56879.0,0.3608]
[1725544532784,0.52728,56899.0,56879.0,0.3608]
[1725544532982,0.52728,56899.0,56874.0,0.3608]
[1725544532983,0.6608,56885.0,56874.0,0.3608]
[1725544533177,0.087913,56877.0,56874.0,0.3608]
[1725544533785,0.087916,56875.0,56874.0,0.3608]
[1725544533985,0.087916,56875.0,56874.0,0.3438]
[1725544534481,0.175832,56875.0,56874.0,0.3438]
[1725544534891,0.087916,56875.0,56874.0,0.3438]
[1725544536482,0.094916,56875.0,56874.0,0.3448]
[1725544536689,0.007,56875.0,56874.0,0.732718]
[1725544536888,0.007,56875.0,56874.0,1.260198]
[1725544537192,0.094916,56875.0,56874.0,0.3448]
[1725544537387,0.087916,56875.0,56874.0,0.3448]
[1725544537593,0.098916,56875.0,56874.0,0.6448]
[1725544538384,0.011,56875.0,56874.0,0.732718]
[1725544538585,0.011,56875.0,56874.0,0.3448]
[1725544538902,0.098916,56875.0,56874.0,0.3448]
[1725544539102,0.011,56875.0,56874.0,0.732718]
[1725544539486,0.00026358,56882.0,56874.0,1.77228]
[1725544539704,0.00026358,56882.0,56881.0,0.3608]
[1725544539891,0.00026358,56882.0,56881.0,0.3628]
[1725544540098,0.00026358,56882.0,56881.0,1.578107]
[1725544540596,0.00026358,56882.0,56881.0,0.978107]
[1725544540798,0.00026358,56882.0,56881.0,1.578107]
[1725544541296,0.00926358,56882.0,56881.0,1.578107]
[1725544541597,0.09716858,56882.0,56881.0,0.3628]
[1725544542191,0.08816858,56882.0,56881.0,0.3628]
[1725544542393,0.09016858,56882.0,56881.0,0.3628]
[1725544542588,0.17807358,56882.0,56881.0,0.3628]
[1725544544798,0.43106358,56882.0,56871.0,0.00017572]
[1725544544997,0.176842,56872.0,56871.0,0.00017572]
[1725544546002,0.175842,56872.0,56871.0,0.00017572]
[1725544546201,0.175842,56872.0,56871.0,0.36097572]
[1725544546394,0.087921,56872.0,56871.0,0.36097572]
[1725544546997,0.089921,56872.0,56871.0,0.36097572]
[1725544547228,0.004,56872.0,56871.0,0.36097572]
[1725544547509,0.091921,56872.0,56871.0,0.36097572]
[1725544548997,0.004,56872.0,56871.0,0.36097572]
[1725544549304,0.091921,56872.0,56871.0,0.36097572]
[1725544549502,0.179842,56872.0,56871.0,0.36097572]
[1725544549703,0.179842,56872.0,56871.0,0.00017572]
[1725544550099,1.395283,56872.0,56871.0,7.2e-07]
[1725544550300,1.495283,56872.0,56871.0,7.2e-07]
[1725544550497,0.087942,56858.0,56857.0,0.3608]
[1725544550703,0.087942,56858.0,56851.0,0.3608]
[1725544550704,0.087952,56852.0,56851.0,0.3608]
[1725544550902,0.089952,56852.0,56851.0,0.3608]
[1725544551098,0.6628,56858.0,56849.0,0.087956]
[1725544551298,0.002,56858.0,56857.0,0.002]
[1725544551510,0.002,56858.0,56857.0,0.5148]
[1725544551895,0.002,56858.0,56857.0,1.130384]
[1725544552808,0.003,56858.0,56857.0,0.5248]
[1725544553514,0.090942,56858.0,56857.0,0.5248]
[1725544554212,0.003,56858.0,56857.0,0.5248]
[1725544555299,0.003,56858.0,56857.0,1.740384]
[1725544556204,0.003,56858.0,56857.0,1.895684]
[1725544556421,0.00026382,56863.0,56857.0,1.87723601]
[1725544556721,0.087911,56878.0,56877.0,0.3]
[1725544556903,0.087911,56878.0,56877.0,0.6628]
[1725544557101,0.087906,56882.0,56877.0,0.6628]
[1725544557404,0.087905,56882.0,56881.0,0.002]
[1725544559405,0.087905,56882.0,56881.0,0.302]
[1725544559810,0.00392595,56887.0,56881.0,0.389906]
[1725544560018,0.09182295,56887.0,56886.0,0.002]
[1725544560323,0.08816082,56887.0,56886.0,0.002]
[1725544560908,0.17605782,56887.0,56886.0,0.002]
[1725544561211,0.08816082,56887.0,56886.0,0.002]
[1725544561417,0.00026382,56887.0,56886.0,0.089899]
[1725544562104,0.08816082,56887.0,56886.0,0.002]
[1725544562311,0.09916082,56887.0,56886.0,0.002]
[1725544563211,0.09916082,56887.0,56886.0,0.0551024]
[1725544563414,0.09916082,56887.0,56886.0,0.003]
[1725544563615,0.09916082,56887.0,56886.0,0.05513437]
[1725544563920,0.01126382,56887.0,56886.0,0.05512774]
[1725544564221,0.01126382,56887.0,56886.0,0.14301941]
[1725544564412,0.01126382,56887.0,56886.0,1.218259]
[1725544564616,0.61474258,56910.0,56886.0,1.13036]
[1725544564818,0.3,56908.0,56900.0,0.3628]
[1725544565016,0.087876,56901.0,56900.0,0.3628]
[1725544565512,0.087876,56901.0,56900.0,0.6628]
[1725544565908,0.087876,56901.0,56900.0,0.3628]
[1725544567421,0.088876,56901.0,56900.0,0.3628]
[1725544567629,0.001,56901.0,56900.0,0.6628]
[1725544567924,0.00026382,56906.0,56903.0,0.087872]
[1725544568116,0.00026382,56906.0,56905.0,0.3628]
[1725544568320,0.15758458,56923.0,56905.0,0.89]
[1725544568618,0.087842,56923.0,56917.0,0.002]
[1725544568816,0.087842,56923.0,56922.0,0.002]
[1725544569015,0.175684,56923.0,56922.0,0.002]
[1725544569330,0.702724,56923.0,56922.0,0.002]
[1725544569510,0.087842,56923.0,56922.0,0.002]
[1725544570021,0.087842,56923.0,56922.0,0.003]
[1725544573521,0.175684,56923.0,56922.0,0.003]
[1725544573918,0.175684,56923.0,56917.0,0.00026358]
[1725544573919,0.1757,56918.0,56917.0,0.00026358]
[1725544574115,0.56555,56918.0,56917.0,5.8e-07]
[1725544574314,1.09263,56918.0,56917.0,5.8e-07]
[1725544574524,0.56555,56918.0,56917.0,5.8e-07]
[1725544575419,0.56916008,56918.0,56917.0,5.8e-07]
[1725544576021,0.56916008,56918.0,56917.0,0.00100058]
[1725544576222,1.09624008,56918.0,56917.0,0.00100058]
[1725544576723,1.16916008,56918.0,56917.0,5.8e-07]
[1725544576918,1.16916008,56918.0,56854.0,0.16297442]
[1725544576919,0.087877,56900.0,56899.0,0.3608]
[1725544577122,0.089877,56900.0,56899.0,0.3608]
[1725544577932,0.177754,56900.0,56899.0,0.3608]
[1725544578322,0.089877,56900.0,56899.0,0.3608]
[1725544579730,0.17577,56895.0,56894.0,0.00026358]
[1725544580034,0.17777,56895.0,56894.0,0.00026358]
[1725544580244,0.089885,56895.0,56894.0,0.00026358]
[1725544580422,0.088885,56895.0,56894.0,0.00026358]
[1725544581427,0.090885,56895.0,56894.0,0.00126358]
[1725544581831,0.090885,56895.0,56894.0,0.36206358]
[1725544582031,0.004,56895.0,56894.0,0.36206358]
[1725544582234,0.08813358,56905.0,56894.0,0.36206358]
[1725544582235,0.08813358,56905.0,56894.0,1.78934358]
[1725544582421,0.00026358,56905.0,56904.0,1.109471]
[1725544582626,0.00026358,56905.0,56904.0,1.111471]
[1725544583029,0.00026358,56905.0,56904.0,2.238671]
[1725544583333,0.087848,56919.0,56912.0,0.087859]
[1725544583532,0.087848,56919.0,56904.0,2.3186]
[1725544583533,0.087853,56916.0,56915.0,0.3608]
[1725544585825,0.087853,56916.0,56915.0,0.7216]
[1725544586231,0.087853,56916.0,56915.0,0.7226]
[1725544587130,0.087853,56916.0,56915.0,0.3618]
[1725544593432,0.00026358,56921.0,56915.0,0.6618]
[1725544593639,0.08810858,56921.0,56920.0,0.3628]
[1725544594334,0.17595358,56921.0,56920.0,0.3628]
[1725544595536,0.23837019,56921.0,56920.0,0.3628]
[1725544597040,0.23837019,56921.0,56920.0,0.3638]
[1725544598034,0.59228127,56921.0,56920.0,0.3638]
[1725544598241,0.15052646,56921.0,56920.0,0.6638]
[1725544598434,0.11659127,56921.0,56920.0,0.751646]
[1725544598840,0.11659127,56921.0,56920.0,0.3638]
[1725544600341,0.2215794,56921.0,56920.0,0.3638]
[1725544600743,0.11659127,56921.0,56920.0,0.3638]
[1725544600949,0.08810858,56921.0,56920.0,0.3638]
[1725544601245,0.17558793,56921.0,56920.0,0.3638]
[1725544601440,0.00026358,56921.0,56920.0,0.451646]
[1725544602843,0.09647723,56928.0,56920.0,1.49084]
[1725544603145,0.009,56928.0,56927.0,0.3628]
[1725544603942,0.096834,56928.0,56927.0,0.3628]
[1725544604743,0.08809158,56933.0,56927.0,0.750636]
[1725544604941,0.08809158,56933.0,56932.0,0.3648]
[1725544605140,0.00026358,56933.0,56932.0,0.3648]
[1725544605546,0.08808958,56933.0,56932.0,0.3648]
[1725544605747,0.00026358,56933.0,56932.0,0.452628]
[1725544606839,0.00026358,56933.0,56932.0,1.736748]
[1725544607037,0.00026358,56933.0,56932.0,1.74532402]
[1725544608141,0.00026358,56933.0,56932.0,1.74894513]
[1725544608343,0.00026358,56933.0,56932.0,1.14894513]
[1725544609036,0.00026358,56933.0,56932.0,0.3658]
[1725544609246,0.08808958,56933.0,56932.0,0.3658]
[1725544610549,0.00026358,56933.0,56932.0,0.453628]
[1725544611451,0.00026358,56933.0,56932.0,0.4624783]
[1725544611643,0.00026358,56933.0,56932.0,0.453628]
[1725544612043,0.00026358,56933.0,56932.0,0.46234649]
[1725544613646,0.00026358,56933.0,56932.0,1.06234649]
[1725544613845,0.00026358,56933.0,56932.0,1.58926649]
[1725544614054,0.00026358,56933.0,56932.0,1.67709449]
[1725544615551,0.00026358,56933.0,56932.0,0.55017449]
[1725544615752,0.00026358,56933.0,56932.0,1.07709449]
[1725544615958,0.00026358,56933.0,56932.0,1.91709449]
[1725544616159,0.00026358,56933.0,56932.0,0.693628]
[1725544616655,0.08774081,56933.0,56932.0,0.693628]
[1725544617060,0.00026358,56933.0,56932.0,0.693628]
[1725544617546,0.00026358,56933.0,56932.0,0.79016379]
[1725544618345,0.00026358,56933.0,56932.0,0.87799179]
[1725544618958,0.00026358,56933.0,56932.0,0.781456]
[1725544619269,0.00362923,56947.0,56932.0,0.781456]
[1725544619270,0.00362923,56947.0,56932.0,1.14137946]
[1725544619453,0.1578,56951.0,56949.0,0.087802]
[1725544619654,0.30949969,56950.0,56949.0,0.452602]
[1725544619956,0.3059,56950.0,56949.0,0.452602]
[1725544620752,0.4337,56950.0,56949.0,0.3658]
[1725544620960,1.0483,56950.0,56949.0,0.3658]
[1725544621158,0.4337,56950.0,56949.0,0.3658]
[1725544621661,0.9605,56950.0,56949.0,0.005]
[1725544622358,0.9605,56950.0,56949.0,0.3658]
[1725544622559,0.9605,56950.0,56949.0,0.005]
[1725544623262,0.3459,56950.0,56949.0,0.453602]
[1725544623453,0.3937,56950.0,56949.0,0.453602]
[1725544624554,0.4815,56950.0,56949.0,0.3658]
[1725544624861,1.3967,56950.0,56944.0,0.00026358]
[1725544625161,0.175616,56945.0,56944.0,0.00026358]
[1725544625658,0.775616,56945.0,56944.0,0.00026358]
[1725544625862,0.702456,56945.0,56944.0,0.36106358]
[1725544626058,1.302456,56945.0,56944.0,0.36106358]
[1725544626264,0.775616,56945.0,56944.0,0.36106358]
[1725544626564,0.174616,56945.0,56944.0,0.36106358]
[1725544626755,1.301456,56945.0,56944.0,0.36106358]
[1725544626949,0.008,56949.0,56944.0,0.36106358]
[1725544627154,0.008,56949.0,56948.0,0.091803]
[1725544629158,0.008,56949.0,56948.0,0.179606]
[1725544629365,0.008,56949.0,56948.0,0.331803]
[1725544630164,0.008,56949.0,56948.0,0.32999797]
[1725544630364,0.08747723,56963.0,56949.0,0.52676]
[1725544630664,0.08747723,56969.0,56968.0,0.087772]
[1725544630855,0.327771,56969.0,56968.0,0.3648]
[1725544631056,0.327771,56969.0,56968.0,0.3608]
[1725544631254,0.24,56969.0,56968.0,0.448572]
[1725544631451,0.327771,56969.0,56968.0,0.3608]
[1725544632770,0.24,56969.0,56968.0,0.3608]
[1725544633070,0.00375573,56970.0,56969.0,0.087771]
[1725544633265,0.01,56970.0,56969.0,0.004]
[1725544633567,0.097769,56970.0,56969.0,0.004]
[1725544633766,0.22000691,56970.0,56969.0,0.004]
[1725544633954,0.28237368,56970.0,56969.0,0.004]
[1725544634457,0.06236677,56970.0,56969.0,0.419542]
[1725544634659,0.02845994,56970.0,56969.0,0.092771]
[1725544634969,0.26845686,56973.0,56969.0,0.005]
[1725544635264,0.02845686,56972.0,56971.0,0.087767]
[1725544635461,0.11622286,56972.0,56971.0,0.087767]
[1725544635763,0.02845686,56972.0,56971.0,0.087767]
[1725544636364,0.13325793,56972.0,56971.0,0.087767]
[1725544637277,0.13325793,56972.0,56968.0,0.3608]
[1725544637278,0.02845686,56972.0,56968.0,0.3608]
[1725544637565,0.24,56970.0,56968.0,0.3608]
[1725544637765,0.11622786,56969.0,56968.0,0.3608]
[1725544638171,0.11522786,56969.0,56968.0,0.448572]
[1725544638361,0.11522786,56969.0,56968.0,0.3608]
[1725544638850,0.35522786,56969.0,56968.0,0.3608]
[1725544639463,0.02845686,56969.0,56968.0,0.448572]
[1725544639669,0.00017407,56974.0,56973.0,0.087765]
[1725544639966,0.00017407,56974.0,56973.0,0.452565]
[1725544640164,0.08793707,56974.0,56973.0,0.004]
[1725544640359,0.73071797,56974.0,56973.0,0.004]
[1725544640561,0.11639497,56974.0,56973.0,0.091765]
[1725544640752,0.32793707,56974.0,56973.0,0.091765]
[1725544641658,0.32793707,56974.0,56973.0,0.452565]
[1725544641659,0.24017407,56974.0,56973.0,0.452565]
[1725544642166,0.00017407,56974.0,56973.0,0.452565]
[1725544643261,0.00117407,56974.0,56973.0,0.453565]
[1725544644261,0.00117407,56974.0,56973.0,0.452565]
[1725544644560,0.00117407,56974.0,56973.0,0.3648]
[1725544644763,0.087771,56969.0,56968.0,0.3608]
[1725544644977,0.327771,56969.0,56968.0,0.3608]
[1725544645858,0.175558,56964.0,56961.0,0.3608]
[1725544646064,0.437779,56964.0,56961.0,0.3608]
[1725544646869,1.564419,56964.0,56961.0,0.3608]
[1725544647073,0.437779,56964.0,56955.0,0.448592]
[1725544647972,1.54595066,56964.0,56951.0,0.087798]
[1725544648164,1.54595066,56964.0,56948.0,0.3608]
[1725544648165,0.087799,56951.0,56948.0,0.3608]
[1725544648473,0.087781,56963.0,56948.0,0.3608]
[1725544648474,0.087797,56952.0,56948.0,0.3608]
[1725544648678,0.00375266,56964.0,56948.0,0.3608]
[1725544648679,0.087802,56949.0,56948.0,0.3608]
[1725544650077,0.175618,56944.0,56943.0,0.0002633]
[1725544650277,0.776418,56944.0,56943.0,0.0002633]
[1725544650571,0.762418,56944.0,56943.0,0.0002633]
[1725544651372,0.402618,56944.0,56943.0,0.0012633]
[1725544651969,0.314809,56944.0,56943.0,0.0012633]
[1725544652291,0.3185301,56944.0,56943.0,0.0012633]
[1725544652771,0.3185301,56944.0,56943.0,0.00366942]
[1725544653283,0.7671391,56944.0,56943.0,0.00366942]
[1725544654168,2.1339791,56944.0,56943.0,0.00366942]
[1725544654477,0.087838,56926.0,56924.0,0.087839]
[1725544654775,0.087831,56930.0,56925.0,0.3608]
[1725544654967,0.24,56936.0,56930.0,0.08783]
[1725544655171,0.087822,56936.0,56935.0,0.002]
[1725544655480,0.087822,56936.0,56930.0,0.08783]
[1725544655481,0.087829,56932.0,56930.0,0.0880933]
[1725544655780,0.08983,56931.0,56930.0,0.0880933]
[1725544656478,0.08983,56931.0,56930.0,0.4488933]
[1725544657574,0.08983,56931.0,56930.0,0.4548933]
[1725544657575,0.003,56931.0,56930.0,0.4548933]
[1725544658479,0.003,56931.0,56930.0,0.7827243]
[1725544658668,0.0002633,56941.0,56940.0,0.087816]
[1725544658866,0.0002633,56941.0,56940.0,0.089816]
[1725544659881,0.3330773,56941.0,56940.0,0.002]
[1725544660083,0.0930773,56941.0,56940.0,0.089816]
[1725544660281,0.0052633,56941.0,56940.0,0.089816]
[1725544660777,0.0930773,56941.0,56940.0,0.089816]
[1725544660987,0.0930773,56941.0,56940.0,0.002]
[1725544661275,0.0052633,56941.0,56940.0,0.002]
[1725544661679,0.0002633,56941.0,56940.0,0.094816]
[1725544661866,0.4158913,56941.0,56940.0,0.007]
[1725544662669,0.41952342,56941.0,56940.0,0.007]
[1725544663279,1.63421742,56941.0,56940.0,0.002]
[1725544663480,1.03821742,56941.0,56940.0,0.002]
[1725544663782,0.175644,56936.0,56935.0,0.3608]
[1725544663985,0.547644,56936.0,56935.0,0.3608]
[1725544664288,0.08783,56932.0,56931.0,0.087829]
[1725544664475,0.32983,56932.0,56931.0,0.087829]
[1725544664874,0.32983,56932.0,56930.0,0.3610633]
[1725544664875,0.08783,56931.0,56930.0,0.3610633]
[1725544665078,0.08983,56931.0,56930.0,0.4488943]
[1725544665783,0.002,56931.0,56930.0,0.4488943]
[1725544666388,0.001,56931.0,56930.0,0.4488943]
[1725544666885,0.241,56931.0,56930.0,0.4488943]
[1725544667270,0.242,56931.0,56930.0,0.4548943]
[1725544667474,0.241,56931.0,56930.0,0.4548943]
[1725544667670,0.001,56931.0,56930.0,0.4548943]
[1725544668076,0.001,56931.0,56930.0,0.5427253]
[1725544668478,0.001,56931.0,56930.0,1.0696853]
[1725544668869,0.3280783,56941.0,56940.0,0.087816]
[1725544668870,0.2402633,56941.0,56940.0,0.087816]
[1725544669085,0.2402633,56941.0,56940.0,0.089816]
[1725544670284,0.2452633,56941.0,56940.0,0.089816]
[1725544672191,0.0052633,56941.0,56940.0,0.538432]
[1725544672379,0.0052633,56941.0,56940.0,0.778432]
[1725544672688,0.0052633,56941.0,56940.0,0.866248]
[1725544673387,0.0002633,56941.0,56940.0,0.866248]
[1725544674175,0.0002633,56941.0,56940.0,0.690616]
[1725544674779,0.0002633,56941.0,56940.0,1.051416]
[1725544675288,0.0002633,56941.0,56940.0,1.139232]
[1725544675588,0.06969542,56952.0,56951.0,0.087799]
[1725544675776,0.06969542,56953.0,56952.0,0.087797]
[1725544676093,0.24372378,56955.0,56951.0,0.3628]
[1725544676094,0.06969542,56954.0,56953.0,0.087796]
[1725544676385,0.24,56955.0,56954.0,0.087794]
[1725544676586,0.24,56955.0,56954.0,0.089794]
[1725544676992,0.31002622,56955.0,56954.0,0.089794]
[1725544677790,0.31002622,56955.0,56947.0,0.087804]
[1725544677791,0.087817,56939.0,56938.0,0.05208812]
[1725544677980,0.087817,56939.0,56935.0,0.05208812]
[1725544677981,0.242,56939.0,56935.0,0.05208812]
[1725544678176,0.087825,56934.0,56930.0,0.06945082]
[1725544678377,0.087825,56934.0,56922.0,0.1821]
[1725544678378,0.087826,56933.0,56932.0,0.05207603]
[1725544678581,0.327826,56933.0,56932.0,0.13990403]
[1725544678777,0.327826,56933.0,56928.0,0.06945082]
[1725544678778,0.087828,56932.0,56931.0,0.05207603]
[1725544678977,0.089828,56932.0,56931.0,0.05207603]
[1725544679189,0.329828,56932.0,56931.0,0.05207603]
[1725544679387,0.329828,56932.0,56928.0,0.06945082]
[1725544679588,0.08783,56931.0,56929.0,0.087833]
[1725544679787,0.002,56929.0,56928.0,0.06945082]
[1725544680181,0.004,56929.0,56928.0,0.06945082]
[1725544680390,0.002,56929.0,56928.0,0.06945082]
[1725544680583,0.087834,56928.0,56927.0,0.0002633]
[1725544680784,0.328834,56928.0,56927.0,0.0002633]
[1725544680987,0.002,56928.0,56927.0,0.0880993]
[1725544681781,0.001,56929.0,56928.0,0.006]
[1725544681981,0.001,56929.0,56928.0,0.095834]
[1725544683807,0.0002633,56938.0,56930.0,0.087831]
[1725544684089,0.0002633,56938.0,56937.0,0.32982]
[1725544684686,0.0002633,56938.0,56937.0,0.41764]
[1725544684996,0.0002633,56938.0,56937.0,1.72882]
[1725544685194,0.0002633,56938.0,56937.0,1.90952]
[1725544685786,0.07009286,56950.0,56949.0,0.087802]
[1725544686085,0.08755089,56954.0,56953.0,0.087796]
[1725544686284,0.32755089,56955.0,56953.0,0.089796]
[1725544686490,0.32755089,56955.0,56954.0,0.002]
[1725544686701,0.32755089,56955.0,56953.0,0.089796]
[1725544686893,0.002,56954.0,56953.0,0.089796]
[1725544687996,0.002,56954.0,56953.0,0.450596]
[1725544688195,0.011,56954.0,56953.0,0.451596]
[1725544688595,0.08102627,56954.0,56953.0,0.451596]
[1725544689393,0.011,56954.0,56953.0,0.451596]
[1725544690099,0.011,56954.0,56953.0,0.638996]
[1725544690499,0.011,56954.0,56953.0,1.165756]
[1725544690907,0.011,56954.0,56953.0,1.853552]
[1725544691397,0.011,56954.0,56953.0,1.253552]
[1725544691992,0.011,56954.0,56953.0,0.638996]
[1725544692188,0.098794,56954.0,56953.0,0.003]
[1725544692897,0.098794,56954.0,56953.0,0.090796]
[1725544693089,0.011,56954.0,56953.0,0.451596]
[1725544695003,0.011,56954.0,56953.0,0.751596]
[1725544696200,0.011,56954.0,56953.0,0.839392]
[1725544697606,0.011,56954.0,56953.0,0.539392]
[1725544698007,0.011,56954.0,56953.0,0.627188]
[1725544698601,0.011,56954.0,56953.0,1.753948]
[1725544698802,0.0102633,56960.0,56959.0,0.175572]
[1725544699001,0.0102633,56960.0,56959.0,0.836372]
[1725544699194,0.00026329,56960.0,56959.0,2.052838]
[1725544699396,0.07002627,56972.0,56966.0,0.087775]
[1725544699703,0.08776,56976.0,56975.0,0.087762]
[1725544699898,0.08776,56976.0,56975.0,0.091762]
[1725544700411,0.58390034,56981.0,56975.0,0.004]
[1725544700703,0.60162607,56981.0,56980.0,0.091754]
[1725544700915,0.30197885,56981.0,56980.0,0.091754]
[1725544701097,0.27352607,56981.0,56980.0,0.091754]
[1725544701703,0.18577407,56981.0,56980.0,0.091754]
[1725544701897,0.00017407,56981.0,56980.0,0.091754]
[1725544703203,0.00017407,56981.0,56980.0,0.004]
[1725544703609,0.08736307,56981.0,56980.0,0.005]
[1725544703812,0.17511507,56981.0,56980.0,0.005]
[1725544703998,0.44872607,56981.0,56980.0,0.005]
[1725544704193,0.5359,56981.0,56980.0,0.005]
[1725544704398,0.44872607,56981.0,56980.0,0.005]
[1725544704907,0.65210112,56981.0,56980.0,0.005]
[1725544705095,0.53647807,56981.0,56980.0,0.005]
[1725544705299,0.26282844,56981.0,56980.0,0.005]
[1725544705912,0.17567807,56981.0,56980.0,0.005]
[1725544706105,0.2628218,56981.0,56980.0,0.005]
[1725544706310,0.6236218,56981.0,56980.0,0.005]
[1725544706504,0.53647807,56981.0,56980.0,0.005]
[1725544706907,0.6236218,56981.0,56980.0,0.005]
[1725544707111,0.17567807,56981.0,56980.0,0.005]
[1725544707498,0.53647807,56981.0,56980.0,0.005]
[1725544709009,0.087766,56972.0,56970.0,0.0002633]
[1725544709503,0.175532,56972.0,56970.0,0.0002633]
[1725544709708,0.087766,56972.0,56970.0,0.0002633]
[1725544709909,0.087766,56972.0,56970.0,0.0880323]
[1725544710408,0.087766,56972.0,56971.0,0.448568]
[1725544710602,0.39141241,56974.0,56973.0,0.087765]
[1725544710603,0.087763,56974.0,56973.0,0.087765]
[1725544710812,0.08776,56977.0,56976.0,0.087758]
[1725544711013,0.08776,56977.0,56976.0,0.091758]
[1725544711207,0.08776,56977.0,56976.0,0.087758]